bitfinex/quotes_ETHUSD_20260305
["timestamp","ask_amount","ask_price","bid_price","bid_amount"]
[1772732279880,1.66230822,2068.1,2066.7,0.46835234]
[1772732280290,1.20871733,2068.4,2066.9,0.45402489]
[1772732280989,1.20861807,2068.5,2067.1,0.45402489]
[1772732281213,1.20861807,2068.5,2067.3,0.45402489]
[1772732281392,0.48976948,2068.2,2066.8,1.20959938]
[1772732281583,0.48976948,2068.2,2066.8,1.66362427]
[1772732282490,0.001,2067.3,2067.0,0.45402489]
[1772732282691,0.48976948,2068.0,2066.8,1.20959938]
[1772732283118,0.48976948,2067.8,2066.6,2.55183494]
[1772732283483,1.20907288,2067.7,2066.6,2.55183494]
[1772732283699,1.20907288,2067.7,2066.6,0.8881]
[1772732283700,1.69884236,2067.7,2066.6,0.8881]
[1772732284023,0.48976948,2067.6,2066.6,2.09781407]
[1772732284585,0.48976948,2067.6,2066.6,2.09780569]
[1772732284920,1.20907288,2067.7,2066.6,2.09780569]
[1772732285102,4.83629153,2067.8,2066.7,0.45402489]
[1772732285103,1.20903555,2067.8,2066.7,0.45402489]
[1772732285437,1.20854684,2068.7,2067.3,0.45402489]
[1772732285591,2.85878698,2068.6,2067.4,1.34102489]
[1772732285783,0.48976948,2068.5,2067.4,0.887]
[1772732287289,0.48976948,2068.5,2066.9,2.55153419]
[1772732287487,1.20878058,2068.2,2067.1,1.20942383]
[1772732287691,0.48976948,2068.1,2066.9,2.09749827]
[1772732287922,1.20878058,2068.2,2067.0,0.45402489]
[1772732289119,1.69843318,2068.5,2067.0,0.45402489]
[1772732289619,0.48976948,2068.6,2067.1,1.66344872]
[1772732289822,0.48976948,2068.4,2067.1,1.66344872]
[1772732290018,0.48976948,2068.4,2066.7,1.2096579]
[1772732290019,0.48976948,2068.2,2066.7,1.2096579]
[1772732290202,0.48976948,2068.0,2066.6,1.21077281]
[1772732290400,0.48976948,2067.8,2066.6,1.21077281]
[1772732290613,0.48976948,2067.8,2066.6,1.6647977]
[1772732290813,0.48976948,2068.3,2066.7,0.45402489]
[1772732291004,0.48976948,2068.1,2066.7,0.45402489]
[1772732291312,12.08305956,2068.7,2066.6,2.09877281]
[1772732291313,0.48976948,2067.9,2066.6,2.09877281]
[1772732291647,1.20878058,2068.2,2066.7,0.45402489]
[1772732291924,0.48976948,2068.0,2066.7,0.45402489]
[1772732292391,2.85611572,2067.9,2066.7,0.45402489]
[1772732292791,3.3458852,2067.9,2066.7,0.45402489]
[1772732292993,1.69855006,2068.2,2066.7,0.45402489]
[1772732293192,2.85713751,2068.1,2066.7,0.45402489]
[1772732293396,1.69855006,2068.2,2066.9,0.45402489]
[1772732293635,1.20878058,2068.2,2067.1,0.45402489]
[1772732293797,0.48976948,2068.1,2066.7,4.83816343]
[1772732294002,0.48976948,2067.9,2066.7,1.2096579]
[1772732294211,3.34578629,2067.8,2066.6,2.55281038]
[1772732294424,0.48976948,2067.8,2066.6,2.55281038]
[1772732294631,0.48976948,2067.8,2066.9,0.0011]
[1772732295298,2.69423712,2068.0,2066.9,0.45512489]
[1772732295505,0.001,2068.0,2067.0,1.20948234]
[1772732295804,0.49076948,2068.0,2067.0,1.20948234]
[1772732296956,0.49076948,2068.0,2066.9,0.0011]
[1772732297227,0.49076948,2068.0,2067.0,1.20948234]
[1772732297228,0.48976948,2067.8,2067.0,1.20948234]
[1772732297541,0.48976948,2067.6,2066.9,0.0011]
[1772732297840,0.48976948,2067.6,2066.6,0.0011]
[1772732298010,2.8574646,2067.5,2066.6,1.21081291]
[1772732298210,0.48976948,2067.4,2066.6,0.0011]
[1772732298750,0.48976948,2067.4,2066.6,1.21080252]
[1772732298898,1.69884236,2067.7,2066.6,1.21080252]
[1772732299098,1.69884236,2067.7,2066.6,0.0011]
[1772732299099,0.48976948,2067.5,2066.6,0.0011]
[1772732299501,1.69901781,2067.4,2066.6,0.0011]
[1772732299925,0.48976948,2067.4,2066.6,0.0011]
[1772732300329,1.69884205,2067.8,2066.6,0.45512489]
[1772732300534,1.20898822,2067.9,2066.6,0.45512489]
[1772732300831,0.001,2068.0,2066.8,0.45402489]
[1772732301033,1.20995216,2068.0,2067.0,0.45402489]
[1772732301234,1.20995216,2068.0,2066.9,0.888]
[1772732301525,0.001,2068.0,2067.0,1.20948234]
[1772732301928,0.49076948,2068.0,2066.9,2.09750081]
[1772732302131,0.49076948,2068.0,2066.9,0.888]
[1772732302519,0.48976948,2067.8,2066.6,1.21081082]
[1772732302831,0.001,2068.0,2066.6,0.0011]
[1772732302832,0.48976948,2067.6,2066.6,0.0011]
[1772732303033,0.48976948,2067.6,2066.6,1.21077414]
[1772732303202,0.48976948,2067.6,2066.6,0.0011]
[1772732303401,0.48976948,2067.6,2066.6,1.2108148]
[1772732303619,1.69895932,2067.5,2066.4,0.97979892]
[1772732303837,0.48976948,2067.3,2066.1,0.0011]
[1772732304011,0.48976948,2067.2,2066.1,0.0011]
[1772732304207,0.48976948,2067.1,2066.1,1.21109948]
[1772732304404,3.34538856,2067.0,2066.1,0.0011]
[1772732304611,0.48976948,2067.0,2066.1,0.0011]
[1772732304819,0.48976948,2066.8,2066.1,0.0011]
[1772732305609,1.69942738,2066.7,2066.1,0.0011]
[1772732305930,1.20964506,2066.8,2066.1,0.0011]
[1772732306231,1.20952948,2067.0,2066.1,0.0011]
[1772732306429,1.20952948,2067.0,2066.3,0.0011]
[1772732306638,4.83705588,2067.4,2066.3,0.0011]
[1772732306932,1.20924833,2067.4,2066.3,1.34312489]
[1772732307310,1.71203809,2067.4,2066.3,0.8891]
[1772732307745,1.71203809,2067.4,2066.4,1.20983352]
[1772732310328,0.47960677,2067.3,2066.3,2.09898036]
[1772732310531,0.47960677,2067.3,2066.3,0.0011]
[1772732311326,0.47960677,2067.3,2066.3,1.21098597]
[1772732311543,0.47960677,2067.3,2066.3,0.0011]
[1772732312136,0.47960677,2067.1,2066.3,0.0011]
[1772732312557,0.47960677,2067.1,2066.1,0.0011]
[1772732312715,0.47960677,2066.9,2066.1,0.0011]
[1772732312916,0.47960677,2066.7,2066.1,0.0011]
[1772732313353,0.47960677,2066.7,2065.6,0.0011]
[1772732313619,0.47960677,2066.5,2065.6,1.21136396]
[1772732313845,0.47960677,2066.5,2065.6,0.0011]
[1772732314139,0.47960677,2066.3,2065.4,0.0011]
[1772732314642,2.84827252,2066.2,2065.4,0.0011]
[1772732314942,0.47960677,2066.1,2065.4,0.0011]
[1772732315147,0.47960677,2065.9,2064.5,4.84375799]
[1772732315348,0.47960677,2065.8,2064.5,4.84375799]
[1772732315544,0.47960677,2065.8,2064.5,1.21094696]
[1772732315721,0.47960677,2065.8,2064.5,1.71809945]
[1772732316120,1.68985027,2065.7,2064.5,1.21094696]
[1772732316319,1.2102435,2065.7,2064.6,0.50715249]
[1772732316564,0.47960677,2065.6,2064.5,1.21094696]
[1772732317222,1.2102435,2065.7,2064.5,1.21094696]
[1772732317452,1.2102435,2065.7,2064.4,1.27949554]
[1772732317453,0.47960677,2065.6,2064.4,1.27949554]
[1772732317655,0.47960677,2065.6,2064.4,0.06849058]
[1772732317871,0.47960677,2065.6,2064.2,4.84437778]
[1772732317872,0.47960677,2065.4,2063.2,4.84679765]
[1772732318154,0.47960677,2065.4,2062.5,7.22218257]
[1772732318155,0.47960677,2064.9,2063.5,2.60664794]
[1772732318339,0.47960677,2064.9,2063.5,1.71864794]
[1772732318531,0.47960677,2064.9,2063.5,1.21149545]
[1772732318920,0.47960677,2064.9,2063.4,1.21154799]
[1772732319347,0.47960677,2064.9,2064.5,0.0011]
[1772732319576,1.78860677,2064.8,2064.2,0.0011]
[1772732320262,1.21082966,2064.7,2064.2,0.0011]
[1772732320724,6.63192541,2064.8,2064.2,0.0011]
[1772732320725,1.21079546,2064.8,2064.2,0.0011]
[1772732321362,1.21069467,2065.0,2064.2,0.0011]
[1772732322225,4.84213582,2065.3,2064.2,0.0011]
[1772732322426,6.15113582,2065.3,2064.2,0.0011]
[1772732322844,4.84213582,2065.3,2064.2,0.0011]
[1772732323745,5.32174259,2065.3,2064.2,0.0011]
[1772732324046,0.47960677,2065.2,2064.2,0.0011]
[1772732324451,0.47960677,2065.0,2064.2,0.0011]
[1772732326128,0.47960677,2065.0,2063.7,1.19246967]
[1772732326341,1.21071238,2064.9,2063.4,4.84636438]
[1772732326649,1.78860677,2064.8,2063.4,4.84636438]
[1772732326855,1.78860677,2064.8,2063.4,5.35351687]
[1772732327236,0.47960677,2065.2,2063.5,0.50715249]
[1772732327434,1.69020189,2065.1,2063.5,0.50715249]
[1772732327630,0.47960677,2065.0,2063.5,0.50715249]
[1772732328555,1.308,2064.9,2063.5,0.50715249]
[1772732329355,1.69037778,2064.8,2063.6,1.21147509]
[1772732329559,0.47960677,2064.7,2063.5,1.71865036]
[1772732329854,0.47960677,2064.7,2063.3,1.21163591]
[1772732329855,0.47960677,2064.6,2063.3,1.21163591]
[1772732330357,1.307,2064.5,2063.3,1.21163591]
[1772732330539,1.78660677,2064.5,2063.3,1.21163591]
[1772732330744,0.47960677,2064.4,2063.3,1.21163591]
[1772732331337,1.2108883,2064.6,2063.5,1.2115338]
[1772732331537,1.2108883,2064.6,2063.6,0.0011]
[1772732332742,7.57087933,2064.7,2063.6,0.50825249]
[1772732332937,5.32179041,2065.2,2063.6,0.50825249]
[1772732332938,1.21059512,2065.1,2063.6,0.50825249]
[1772732333461,0.47960677,2065.1,2063.7,1.71856887]
[1772732336165,0.47960677,2064.9,2063.7,1.71856887]
[1772732337963,1.21065375,2065.0,2063.8,0.50715249]
[1772732338168,4.84261501,2065.1,2063.9,1.21129899]
[1772732338462,0.47960677,2065.1,2064.0,0.50715249]
[1772732338667,0.47960677,2065.1,2063.9,1.21129899]
[1772732338967,0.47960677,2065.1,2063.9,1.71845148]
[1772732340466,1.74290047,2065.0,2063.9,1.21129899]
[1772732340780,1.74290047,2065.0,2063.6,4.8469877]
[1772732340781,0.53224672,2064.9,2063.6,1.21255921]
[1772732341156,1.21065375,2065.0,2063.7,0.54660768]
[1772732341344,0.53224672,2065.6,2063.7,0.54660768]
[1772732341544,4.84153825,2065.5,2063.7,0.54660768]
[1772732341742,4.84153825,2065.5,2063.6,1.21255921]
[1772732341743,0.53224672,2065.4,2063.9,0.54660768]
[1772732342146,1.2102435,2065.7,2063.9,0.54660768]
[1772732342474,1.53453226,2065.9,2064.3,0.54660768]
[1772732342648,1.53447578,2065.9,2064.5,0.54660768]
[1772732342843,4.8393341,2066.5,2064.7,0.54660768]
[1772732343048,4.8393341,2066.5,2064.9,0.54660768]
[1772732343249,4.8393341,2066.5,2065.1,0.54660768]
[1772732343455,0.001,2065.2,2065.1,0.54660768]
[1772732343655,4.8393341,2066.5,2065.1,0.54660768]
[1772732343959,4.83909992,2066.6,2065.1,0.54660768]
[1772732344479,5.37134664,2066.6,2065.3,0.54660768]
[1772732344870,0.53224672,2066.4,2065.0,2.09163863]
[1772732345071,4.83909992,2066.6,2065.1,0.54660768]
[1772732345072,6.13909992,2066.6,2065.1,0.54660768]
[1772732345366,2.8491948,2066.5,2065.1,0.54660768]
[1772732345551,0.53224672,2066.4,2065.1,0.54660768]
[1772732346486,1.20989207,2066.3,2065.3,0.54660768]
[1772732347187,1.2096579,2066.7,2065.3,0.54660768]
[1772732348469,1.2096579,2066.7,2065.5,0.54660768]
[1772732349559,1.74190462,2066.7,2065.5,0.54660768]
[1772732349763,0.53224672,2066.6,2065.3,1.2104419]
[1772732349962,1.2096579,2066.7,2065.4,0.54660768]
[1772732350486,4.83963163,2066.9,2065.6,0.54660768]
[1772732352768,1.20918984,2067.5,2066.1,0.54660768]
[1772732352959,1.20918984,2067.5,2066.3,0.54660768]
[1772732353383,1.21017616,2067.6,2066.3,0.54660768]
[1772732353694,1.21017616,2067.6,2066.5,0.54660768]
[1772732353695,0.001,2067.6,2066.5,0.54660768]
[1772732354078,1.21014265,2067.6,2066.5,0.54660768]
[1772732354997,0.001,2067.6,2066.7,0.54660768]
[1772732355494,0.001,2067.4,2066.7,0.54660768]
[1772732356594,0.001,2067.4,2066.5,1.20973123]
[1772732356975,0.001,2067.4,2066.6,0.54660768]
[1772732359005,0.001,2067.4,2066.7,1.75626558]
[1772732359499,0.001,2067.4,2066.5,0.876]
[1772732359878,0.001,2067.4,2066.6,0.54660768]
[1772732360078,0.001,2067.6,2066.6,0.54660768]
[1772732360284,0.001,2067.6,2066.8,0.54660768]
[1772732360480,0.001,2067.6,2066.7,0.05938296]
[1772732360481,0.001,2067.6,2066.9,0.60624963]
[1772732360901,0.001,2067.6,2067.0,1.20948234]
[1772732361591,0.001,2067.6,2066.9,1.26918255]
[1772732361983,0.001,2067.6,2066.9,1.81579023]
[1772732362209,0.001,2067.6,2067.0,0.54660768]
[1772732362506,0.001,2067.6,2067.0,0.875]
[1772732363084,0.001,2067.6,2067.1,1.20942383]
[1772732363477,0.001,2067.6,2067.0,2.08443487]
[1772732363679,0.001,2067.6,2067.0,2.08447498]
[1772732363879,0.001,2067.6,2067.0,0.875]
[1772732364492,0.001,2067.6,2067.0,2.08447779]
[1772732364703,0.001,2067.6,2067.0,0.875]
[1772732365090,0.001,2067.6,2066.9,0.05964195]
[1772732365319,0.53324672,2067.6,2066.9,0.05964195]
[1772732365996,0.53324672,2067.6,2066.6,1.20971444]
[1772732366321,0.53324672,2067.6,2066.4,1.20983352]
[1772732367085,1.20918984,2067.5,2066.5,0.54660768]
[1772732367318,1.20918984,2067.5,2066.4,1.20983352]
[1772732367319,1.21017618,2067.6,2066.8,0.53352751]
[1772732367499,1.21017618,2067.6,2066.8,0.0011]
[1772732367697,0.001,2067.4,2066.8,0.0011]
[1772732370329,0.55956332,2067.4,2066.8,0.0011]
[1772732370532,0.55956332,2067.4,2066.5,0.05834795]
[1772732370829,0.55956332,2067.4,2066.5,0.0011]
[1772732371221,1.76787014,2067.3,2066.5,0.0011]
[1772732371890,0.55856332,2067.2,2066.5,0.0011]
[1772732372635,1.20930682,2067.3,2066.5,0.0011]
[1772732372914,1.76787014,2067.3,2066.5,0.0011]
[1772732373122,1.20942383,2067.1,2066.5,0.0011]
[1772732376028,1.76798715,2067.1,2066.5,0.0011]
[1772732376452,1.76798715,2067.1,2066.3,0.0011]
[1772732376453,0.55856332,2067.0,2066.3,0.0011]
[1772732376652,0.55856332,2066.8,2065.2,0.872]
[1772732376939,1.281,2067.0,2065.3,0.57316967]
[1772732376940,0.55856332,2066.6,2065.3,0.57316967]
[1772732377296,0.55856332,2066.4,2065.2,0.872]
[1772732377627,0.55856332,2066.4,2065.2,2.08251637]
[1772732377921,3.40581036,2066.3,2065.2,2.08251637]
[1772732378104,0.55856332,2066.3,2065.2,2.08251637]
[1772732378741,1.20977498,2066.5,2065.3,0.57316967]
[1772732379447,1.20954085,2066.9,2065.5,0.57316967]
[1772732379666,1.20954085,2066.9,2066.7,0.0011]
[1772732379667,0.55856332,2066.8,2066.7,0.0011]
[1772732379929,0.55856332,2066.8,2065.5,0.57316967]
[1772732380925,0.55856332,2066.8,2066.5,0.0011]
[1772732381234,0.55856332,2066.8,2066.2,0.0011]
[1772732381437,1.2096579,2066.7,2066.2,0.0011]
[1772732382113,0.55856332,2066.6,2065.2,1.2105365]
[1772732382318,0.55856332,2066.4,2065.2,1.2105365]
[1772732383318,0.55856332,2066.2,2065.1,1.78373134]
[1772732385518,1.21000919,2066.1,2065.1,1.78373134]
[1772732386472,1.21000919,2066.1,2065.2,0.57316967]
[1772732387425,5.3986001,2066.4,2065.3,1.21047789]
[1772732387618,4.84003678,2066.4,2065.2,1.78365992]
[1772732387951,0.55856332,2066.3,2065.2,1.78365992]
[1772732388323,0.55856332,2066.3,2065.3,0.57316967]
[1772732389746,1.20995063,2066.2,2065.4,1.21041928]
[1772732391151,0.55856332,2066.6,2065.6,0.57316967]
[1772732391740,1.20977498,2066.5,2065.7,1.2102435]
[1772732391947,1.76832736,2066.6,2065.7,1.78341317]
[1772732392138,1.76810417,2066.9,2065.8,0.57316967]
[1772732393053,0.001,2066.0,2065.8,0.57316967]
[1772732393356,0.55856332,2066.8,2065.8,0.57316967]
[1772732393549,0.55856332,2066.8,2065.5,2.65149286]
[1772732393726,0.55856332,2066.8,2065.5,2.65151683]
[1772732393938,0.55856332,2066.6,2065.5,2.65151683]
[1772732394336,1.2096579,2066.7,2065.6,0.57316967]
[1772732395427,1.76822122,2066.7,2065.6,0.57316967]
[1772732395657,1.76822122,2066.7,2065.7,0.867]
[1772732395961,0.55856332,2066.6,2065.7,0.867]
[1772732396253,1.76810417,2066.9,2065.9,0.57316967]
[1772732396456,0.001,2067.0,2065.9,0.57316967]
[1772732396829,1.2104855,2067.0,2065.9,0.57316967]
[1772732398056,1.21048438,2067.0,2065.9,0.57316967]
[1772732398227,0.001,2067.0,2066.1,0.57316967]
[1772732398427,0.001,2067.0,2066.3,0.57316967]
[1772732400461,0.001,2067.4,2066.5,0.54159504]
[1772732401330,0.001,2067.6,2066.7,0.54159504]
[1772732401535,1.20881692,2068.2,2067.0,0.54159504]
[1772732401763,1.20878256,2068.2,2067.0,0.54159504]
[1772732401966,1.75455411,2068.8,2067.2,0.54159504]
[1772732402264,4.83364028,2068.9,2067.1,0.21502099]
[1772732402265,0.54609037,2068.9,2067.6,0.54159504]
[1772732402448,0.54609037,2068.9,2067.7,0.54159504]
[1772732402844,0.54609037,2068.9,2067.4,1.20920981]
[1772732403260,0.54609037,2068.9,2067.4,1.75080485]
[1772732403443,0.54609037,2068.8,2067.4,1.75080485]
[1772732404130,0.54609037,2068.8,2067.5,0.05202354]
[1772732404338,0.54609037,2068.6,2067.6,1.20913136]
[1772732404846,0.54609037,2068.6,2067.6,1.7507264]
[1772732405040,1.20948842,2068.7,2067.6,1.7507264]
[1772732405243,0.54609037,2068.6,2067.5,1.26121012]
[1772732405657,1.20948842,2068.7,2067.6,0.54159504]
[1772732406369,1.20948842,2068.7,2067.7,0.05184564]
[1772732406563,0.001,2068.7,2067.8,1.20901441]
[1772732406769,0.001,2068.7,2067.9,1.40759504]
[1772732407237,0.54709037,2068.7,2067.8,2.07501441]
[1772732407441,0.54709037,2068.7,2067.8,0.866]
[1772732408743,1.75463721,2068.6,2067.8,0.866]
[1772732409271,1.20949542,2068.7,2067.8,2.61658643]
[1772732409861,1.20949542,2068.7,2067.9,0.54159504]
[1772732410651,1.20949001,2068.7,2067.9,0.54159504]
[1772732410869,0.54709037,2068.7,2067.7,0.0517451]
[1772732411069,0.54709037,2068.7,2067.7,1e-08]
[1772732411279,0.54609037,2068.5,2067.0,1.40759504]
[1772732411444,0.54609037,2068.4,2067.0,2.6170759]
[1772732411843,0.54609037,2068.2,2066.6,1.20969332]
[1772732412141,0.54609037,2068.2,2066.5,1.40559504]
[1772732412365,0.54609037,2067.7,2066.5,2.61534978]
[1772732412567,0.54609037,2067.7,2066.6,0.54159504]
[1772732413068,1.75522173,2067.6,2066.5,2.0737186]
[1772732413288,1.75522173,2067.6,2066.5,2.61531364]
[1772732413440,5.38079438,2068.4,2066.6,0.54159504]
[1772732413639,5.38079438,2068.4,2066.7,0.54159504]
[1772732414377,1.2086637,2068.4,2067.1,0.54159504]
[1772732414581,1.2086637,2068.4,2067.3,0.54159504]
[1772732414989,0.001,2068.7,2067.4,1.75084337]
[1772732414990,1.20948842,2068.7,2067.4,1.75084337]
[1772732415282,1.75557879,2068.7,2067.4,1.75084337]
[1772732415491,0.54609037,2068.6,2067.2,0.862]
[1772732416270,0.54609037,2068.6,2067.2,2.07135059]
[1772732416843,0.54609037,2068.6,2067.2,0.862]
[1772732417066,0.54609037,2068.4,2067.2,2.07136093]
[1772732417790,0.54609037,2068.4,2067.2,0.862]
[1772732418070,0.54609037,2068.4,2066.9,1.20949458]
[1772732418774,0.54609037,2068.1,2066.8,0.03614604]
[1772732418972,0.54609037,2067.9,2066.8,1.24573858]
[1772732419172,0.54609037,2067.9,2066.8,0.0011]
[1772732419504,0.54609037,2067.9,2066.8,1.21069336]
[1772732419652,1.20889748,2068.0,2066.9,0.54159504]
[1772732419853,1.20878058,2068.2,2066.9,0.54159504]
[1772732420993,1.20878058,2068.2,2067.1,0.54159504]
[1772732421282,1.20860526,2068.5,2067.1,0.54159504]
[1772732422393,0.54609037,2068.4,2067.1,0.54159504]
[1772732423046,1.7548125,2068.3,2067.2,1.20936532]
[1772732423474,1.7548125,2068.3,2067.2,1.75096036]
[1772732423683,1.7548125,2068.3,2067.2,1.20936532]
[1772732424489,1.7548125,2068.3,2067.2,1.75096036]
[1772732424774,1.20857975,2068.6,2067.3,0.54159504]
[1772732424978,1.20857975,2068.6,2067.6,1.7507264]
[1772732425193,1.20857975,2068.6,2067.7,0.54159504]
[1772732425359,1.75467012,2068.6,2067.6,1.20913136]
[1772732427059,1.75467012,2068.6,2067.5,4.83652544]
[1772732427457,3.40186475,2068.5,2067.4,0.863]
[1772732427677,1.20857975,2068.6,2067.4,2.07223748]
[1772732427678,2.8509994,2068.4,2067.4,2.07223748]
[1772732427854,0.55079202,2068.3,2067.4,2.07223748]
[1772732429190,1.20878058,2068.2,2067.4,2.07222789]
[1772732429696,1.20873833,2068.3,2067.4,2.62654862]
[1772732429897,1.75953035,2068.3,2067.4,2.07332789]
[1772732430066,1.75953035,2068.3,2067.4,2.07330152]
[1772732430393,0.5352107,2068.2,2067.4,0.8641]
[1772732430589,1.20873833,2068.3,2067.4,2.07334469]
[1772732431295,0.001,2068.4,2067.4,2.07334469]
[1772732431490,2.85601605,2068.4,2067.4,2.07334469]
[1772732432604,2.85601605,2068.4,2067.5,0.53685471]
[1772732432605,0.001,2068.4,2067.5,0.53685471]
[1772732433266,0.001,2068.4,2067.7,0.53685471]
[1772732433671,0.001,2068.7,2067.7,0.53685471]
[1772732433900,0.001,2069.0,2068.1,0.53685471]
[1772732434099,0.001,2069.0,2068.3,0.53685471]
[1772732434303,0.001,2069.0,2068.2,0.863]
[1772732434304,1.20931778,2069.0,2068.2,0.863]
[1772732434508,1.20931778,2069.0,2068.2,1.39985471]
[1772732434670,0.001,2069.0,2068.3,0.53685471]
[1772732435090,1.20934144,2069.0,2068.3,0.53685471]
[1772732435283,0.001,2069.0,2068.2,2.07174214]
[1772732435491,0.001,2069.0,2068.2,2.0717771]
[1772732435800,0.001,2069.0,2068.2,2.07177789]
[1772732436172,0.001,2069.0,2068.3,0.53685471]
[1772732436699,0.001,2069.0,2068.2,0.863]
[1772732437204,0.5362107,2069.0,2067.8,0.863]
[1772732437403,1.20837159,2068.9,2067.9,1.20895594]
[1772732437598,0.5352107,2068.8,2067.8,0.863]
[1772732437798,0.5352107,2068.8,2067.6,1.74596544]
[1772732438200,0.5352107,2068.8,2067.7,0.53685471]
[1772732438685,0.5352107,2068.8,2067.5,2.072159]
[1772732438879,0.5352107,2068.8,2067.6,0.53685471]
[1772732439492,0.001,2069.0,2067.8,0.53685471]
[1772732439726,1.20841988,2068.9,2067.8,0.53685471]
[1772732441190,1.20935305,2069.0,2067.8,0.53685471]
[1772732441509,0.5352107,2068.9,2067.6,1.39985471]
[1772732441803,0.5352107,2068.9,2067.7,0.53685471]
[1772732443170,0.5352107,2068.9,2067.8,0.863]
[1772732443377,1.20843,2068.8,2067.9,1.20895594]
[1772732443803,0.5352107,2068.7,2067.8,0.863]
[1772732444200,0.5352107,2068.7,2067.8,2.07200869]
[1772732444406,1.20841837,2068.9,2067.9,0.53685471]
[1772732445107,0.001,2068.6,2067.9,0.53685471]
[1772732445308,1.20933368,2069.0,2067.9,0.53685471]
[1772732445608,0.001,2069.0,2068.1,0.53685471]
[1772732445981,0.5362107,2069.0,2068.0,1.20889748]
[1772732446303,0.001,2069.0,2068.0,1.20889748]
[1772732446609,0.001,2069.0,2068.1,0.53685471]
[1772732447249,0.5362107,2069.0,2067.7,1.74586912]
[1772732447406,0.5362107,2069.0,2068.1,0.863]
[1772732447593,1.20837159,2068.9,2068.2,1.20878058]
[1772732448198,1.20837159,2068.9,2068.1,0.863]
[1772732448403,0.5352107,2068.8,2068.1,0.863]
[1772732448610,0.5352107,2068.8,2067.9,1.20892083]
[1772732448987,1.20837159,2068.9,2068.0,0.53685471]
[1772732449419,1.20931649,2069.0,2068.0,0.53685471]
[1772732449618,1.20931649,2069.0,2068.1,1.74569374]
[1772732449987,0.001,2069.0,2068.2,0.53685471]
[1772732451009,1.20796289,2069.6,2068.3,0.53685471]
[1772732451226,1.20796289,2069.6,2068.5,0.53685471]
[1772732451513,1.20796289,2069.6,2068.7,0.53685471]
[1772732452115,1.20778781,2069.9,2068.7,0.53685471]
[1772732452820,1.20761279,2070.2,2068.9,0.53685471]
[1772732453008,4.83008585,2070.4,2069.1,0.53685471]
[1772732453316,0.5352107,2071.2,2069.6,0.53685471]
[1772732453517,0.5352107,2071.0,2069.8,1.20784616]
[1772732453688,1.20708802,2071.1,2069.9,0.53685471]
[1772732453889,1.74229872,2071.1,2069.9,0.53685471]
[1772732454130,0.5352107,2071.0,2069.7,1.20790238]
[1772732454332,0.5352107,2071.0,2069.8,0.53685471]
[1772732455801,1.74241529,2070.9,2069.8,0.863]
[1772732456894,0.5352107,2070.8,2069.9,0.06278761]
[1772732457094,0.5362107,2070.8,2069.9,0.92578761]
[1772732457402,0.5362107,2070.8,2070.0,0.06278457]
[1772732457604,0.5362107,2070.8,2069.9,0.863]
[1772732457799,1.20732119,2070.7,2069.9,0.863]
[1772732458205,1.20732119,2070.7,2069.9,2.07078001]
[1772732458501,1.20732119,2070.7,2069.9,0.863]
[1772732458821,0.5352107,2070.6,2069.8,0.06074526]
[1772732458993,0.5352107,2070.6,2069.8,1.26858468]
[1772732459324,0.5352107,2070.6,2069.8,0.06074526]
[1772732459617,0.5352107,2070.6,2069.8,1.26858919]
[1772732459921,1.20743781,2070.5,2069.8,1.26859114]
[1772732460599,1.20743781,2070.5,2069.8,0.06074526]
[1772732460924,0.51902127,2070.4,2069.8,0.06074526]
[1772732461125,0.51902127,2070.4,2069.7,0.863]
[1772732461330,0.51902127,2070.4,2069.0,0.863]
[1772732461825,0.51902127,2070.4,2068.9,0.52340178]
[1772732461826,0.51902127,2070.1,2068.9,1.73177337]
[1772732462324,0.51902127,2070.1,2068.6,4.8341834]
[1772732462647,0.51902127,2070.1,2068.5,1.73194862]
[1772732462995,0.51902127,2069.9,2068.1,1.7322109]
[1772732463194,0.51902127,2069.7,2068.1,1.7322109]
[1772732463435,0.51902127,2069.6,2068.1,1.7322109]
[1772732463938,0.51902127,2069.4,2068.1,1.7322109]
[1772732464421,0.51902127,2069.4,2068.0,2.07085628]
[1772732464915,0.51902127,2069.4,2068.0,2.07089505]
[1772732465116,0.51902127,2069.4,2068.0,0.862]
[1772732465322,0.51902127,2069.3,2067.6,0.0379132]
[1772732465524,0.51902127,2068.6,2067.4,0.0011]
[1772732465737,0.51902127,2068.5,2067.4,0.0011]
[1772732466039,0.51902127,2068.3,2067.1,0.0011]
[1772732466400,0.51902127,2068.2,2067.1,0.0011]
[1772732468232,4.8346548,2068.5,2067.1,0.52450178]
[1772732468233,5.35344989,2068.5,2067.1,0.52450178]
[1772732468541,5.35344989,2068.5,2067.3,0.52450178]
[1772732468951,4.83399556,2068.7,2067.3,0.52450178]
[1772732469115,0.51902127,2068.6,2067.3,0.52450178]
[1772732469534,0.51902127,2068.6,2067.4,0.857]
[1772732470032,1.20860526,2068.5,2067.5,1.20918984]
[1772732470238,1.72762653,2068.5,2067.5,1.20918984]
[1772732470623,0.51902127,2068.4,2067.3,1.21039953]
[1772732470804,0.51902127,2068.4,2067.3,1.21040163]
[1772732471003,0.51902127,2068.4,2067.3,1.21040189]
[1772732471538,1.20860526,2068.5,2067.4,0.52340178]
[1772732471913,1.20860526,2068.5,2067.3,1.21040189]
[1772732471914,0.51902127,2068.4,2067.3,1.21040189]
[1772732472116,1.20872213,2068.3,2067.3,0.0011]
[1772732472311,0.51902127,2068.2,2067.3,0.0011]
[1772732474137,4.83488855,2068.5,2067.4,1.20924833]
[1772732474717,4.83488855,2068.5,2067.3,5.3614951]
[1772732474718,0.51902127,2068.4,2067.3,1.2104047]
[1772732474916,0.51902127,2068.4,2067.3,0.0011]
[1772732475114,0.51902127,2068.4,2067.3,1.21039423]
[1772732475340,0.51902127,2068.4,2067.3,0.0011]
[1772732475636,0.51902127,2068.4,2067.3,1.21039927]
[1772732475869,0.51902127,2068.4,2067.3,0.0011]
[1772732476014,0.51902127,2068.4,2067.1,0.0011]
[1772732476015,0.51902127,2068.2,2067.1,0.0011]
[1772732476214,0.51902127,2067.8,2067.1,0.0011]
[1772732476533,0.51902127,2067.8,2067.0,0.0011]
[1772732478134,1.20907288,2067.7,2067.0,0.0011]
[1772732478875,1.72809415,2067.7,2067.0,0.0011]
[1772732479023,0.51902127,2067.6,2067.0,0.0011]
[1772732480119,1.20918984,2067.5,2067.0,0.0011]
[1772732480547,1.20901441,2067.8,2067.0,0.0011]
[1772732481023,1.20901441,2067.8,2067.2,0.0011]
[1772732481624,1.72803568,2067.8,2067.2,0.0011]
[1772732482654,1.20901441,2067.8,2067.2,0.0011]
[1772732482827,0.51902127,2067.7,2067.2,0.0011]
[1772732483017,0.51902127,2067.7,2067.0,0.0011]
[1772732483346,0.51902127,2067.6,2066.8,0.0011]
[1772732484449,1.72821111,2067.5,2066.8,0.0011]